[Event "2026 European Womens Championship"]
[Site "Batumi, GE"]
[Date "2026.06.05"]
[Round "11"]
[White "Vega Gutierrez, Sabrina"]
[Black "Badelka, Olga"]
[Result "1/2-1/2"]
[Board "2"]
[TimeControl "5400+30"]
[WhiteFideId "2219026"]
[BlackFideId "13509926"]
[WhiteElo "2375"]
[BlackElo "2392"]
[WhiteTitle "IM"]
[BlackTitle "IM"]
[WhiteClock "0:05:08"]
[BlackClock "0:03:55"]
[Variant "Standard"]

1. e4 {[%clk 1:30:57]}  e6 {[%clk 1:30:55]} 2. d4 {[%clk 1:31:21]}  d5 {[%clk 1:31:20]} 3. Nc3 {[%clk 1:31:46]}  Nf6 {[%clk 1:31:43]}
4. Bg5 {[%clk 1:32:11]}  dxe4 {[%clk 1:31:56]} 5. Nxe4 {[%clk 1:32:32]}  Nbd7 {[%clk 1:32:19]} 6. Nf3 {[%clk 1:32:42]}  h6 {[%clk 1:32:38]}
7. Nxf6+ {[%clk 1:32:49]}  Nxf6 {[%clk 1:33:01]} 8. Be3 {[%clk 1:33:13]}  Bd7 {[%clk 1:32:58]} 9. Ne5 {[%clk 1:28:23]}  Bd6 {[%clk 1:32:32]}
10. Bd3 {[%clk 1:25:36]}  Nd5 {[%clk 1:25:05]} 11. Bd2 {[%clk 1:24:54]}  Bxe5 {[%clk 1:12:04]} 12. dxe5 {[%clk 1:25:15]}  Qh4 {[%clk 1:12:06]}
13. Qe2 {[%clk 1:19:08]}  Bc6 {[%clk 1:03:12]} 14. a3 {[%clk 1:16:13]}  Nf4 {[%clk 1:02:09]} 15. Bxf4 {[%clk 1:16:27]}  Qxf4 {[%clk 1:02:33]}
16. Bb5 {[%clk 1:15:48]}  Bxb5 {[%clk 1:00:48]} 17. Qxb5+ {[%clk 1:16:06]}  c6 {[%clk 1:01:11]} 18. Qe2 {[%clk 1:06:24]}  O-O-O {[%clk 1:00:11]}
19. g3 {[%clk 1:06:47]}  Qd4 {[%clk 0:54:07]} 20. c3 {[%clk 1:06:52]}  Qc5 {[%clk 0:53:19]} 21. O-O {[%clk 1:02:50]}  Rd5 {[%clk 0:53:26]}
22. Rfe1 {[%clk 0:59:28]}  Rhd8 {[%clk 0:53:25]} 23. Qe3 {[%clk 0:46:19]}  Qxe3 {[%clk 0:51:20]} 24. Rxe3 {[%clk 0:46:46]}  Rd2 {[%clk 0:51:17]}
25. b4 {[%clk 0:45:04]}  R8d3 {[%clk 0:47:08]} 26. Rae1 {[%clk 0:44:18]}  Kd7 {[%clk 0:40:38]} 27. a4 {[%clk 0:40:07]}  b6 {[%clk 0:30:54]}
28. Kg2 {[%clk 0:30:04]}  Ke7 {[%clk 0:28:22]} 29. Rxd3 {[%clk 0:26:25]}  Rxd3 {[%clk 0:28:45]} 30. Re3 {[%clk 0:26:32]}  Rd5 {[%clk 0:14:02]}
31. h4 {[%clk 0:22:17]}  a5 {[%clk 0:09:39]} 32. Re4 {[%clk 0:21:17]}  c5 {[%clk 0:09:42]} 33. bxa5 {[%clk 0:14:08]}  bxa5 {[%clk 0:10:09]}
34. Kf1 {[%clk 0:14:29]}  g5 {[%clk 0:08:37]} 35. hxg5 {[%clk 0:14:56]}  hxg5 {[%clk 0:09:05]} 36. Ke2 {[%clk 0:15:12]}  f5 {[%clk 0:07:25]}
37. exf6+ {[%clk 0:15:38]}  Kxf6 {[%clk 0:07:53]} 38. g4 {[%clk 0:13:06]}  Rd8 {[%clk 0:05:51]} 39. Rc4 {[%clk 0:12:59]}  Rd5 {[%clk 0:06:17]}
40. f4 {[%clk 0:09:11]}  gxf4 {[%clk 0:03:45]} 41. Rxf4+ {[%clk 0:09:38]}  Ke5 {[%clk 0:02:38]} 42. Rf3 {[%clk 0:05:54]}  Rd8 {[%clk 0:27:15]}
43. Re3+ {[%clk 0:31:53]}  Kf6 {[%clk 0:27:33]} 44. Re4 {[%clk 0:29:54]}  Rd7 {[%clk 0:22:43]} 45. Ke3 {[%clk 0:29:02]}  Rd1 {[%clk 0:22:24]}
46. Rc4 {[%clk 0:28:59]}  Rd5 {[%clk 0:20:59]} 47. Kf4 {[%clk 0:24:46]}  Kg6 {[%clk 0:20:39]} 48. Re4 {[%clk 0:24:25]}  Kf6 {[%clk 0:21:05]}
49. Re3 {[%clk 0:19:24]}  c4 {[%clk 0:12:02]} 50. Rh3 {[%clk 0:18:58]}  Kg6 {[%clk 0:09:27]} 51. Rh5 {[%clk 0:14:45]}  Rd3 {[%clk 0:09:23]}
52. Rg5+ {[%clk 0:08:49]}  Kf6 {[%clk 0:09:45]} 53. Rxa5 {[%clk 0:09:06]}  Rxc3 {[%clk 0:10:12]} 54. g5+ {[%clk 0:09:24]}  Kg6 {[%clk 0:09:10]}
55. Ra6 {[%clk 0:09:29]}  Kf7 {[%clk 0:04:08]} 56. Ra7+ {[%clk 0:09:56]}  Kg6 {[%clk 0:03:21]} 57. Re7 {[%clk 0:10:20]}  Rc1 {[%clk 0:03:09]}
58. Rxe6+ {[%clk 0:10:46]}  Kg7 {[%clk 0:03:30]} 59. Rc6 {[%clk 0:05:08]}  c3 {[%clk 0:03:55]} 60. Ke4 {[%clk 0:04:52]} 1/2-1/2

[Event "2026 European Womens Championship"]
[Site "Batumi, GE"]
[Date "2026.06.05"]
[Round "11"]
[White "Narva, Mai"]
[Black "Salimova, Nurgyul"]
[Result "0-1"]
[Board "3"]
[TimeControl "5400+30"]
[WhiteFideId "4500512"]
[BlackFideId "2915138"]
[WhiteElo "2426"]
[BlackElo "2404"]
[WhiteTitle "IM"]
[BlackTitle "IM"]
[WhiteClock "0:01:28"]
[BlackClock "0:01:33"]
[Variant "Standard"]

1. e4 {[%clk 1:30:56]}  e5 {[%clk 1:30:52]} 2. Nf3 {[%clk 1:31:18]}  Nf6 {[%clk 1:31:15]} 3. Nxe5 {[%clk 1:31:33]}  d6 {[%clk 1:31:38]}
4. Nf3 {[%clk 1:31:54]}  Nxe4 {[%clk 1:31:54]} 5. d4 {[%clk 1:32:00]}  d5 {[%clk 1:31:46]} 6. Bd3 {[%clk 1:32:18]}  Nc6 {[%clk 1:30:58]}
7. O-O {[%clk 1:32:24]}  Bg4 {[%clk 1:29:28]} 8. c3 {[%clk 1:30:10]}  Be7 {[%clk 1:15:02]} 9. Re1 {[%clk 1:17:22]}  f5 {[%clk 0:58:16]}
10. Bb5 {[%clk 0:48:53]}  O-O {[%clk 0:56:39]} 11. Nbd2 {[%clk 0:38:36]}  Bh4 {[%clk 0:50:04]} 12. g3 {[%clk 0:33:46]}  Qd6 {[%clk 0:41:30]}
13. Bf1 {[%clk 0:31:26]}  Bg5 {[%clk 0:33:28]} 14. Qb3 {[%clk 0:17:05]}  Bh6 {[%clk 0:27:45]} 15. Bg2 {[%clk 0:10:58]}  Kh8 {[%clk 0:24:23]}
16. Qxb7 {[%clk 0:06:26]}  Rae8 {[%clk 0:20:15]} 17. Qa6 {[%clk 0:03:30]}  Re6 {[%clk 0:06:22]} 18. Nxe4 {[%clk 0:03:12]}  fxe4 {[%clk 0:06:23]}
19. Ne5 {[%clk 0:03:05]}  Nxe5 {[%clk 0:03:20]} 20. Qxd6 {[%clk 0:03:29]}  cxd6 {[%clk 0:03:13]} 21. dxe5 {[%clk 0:03:42]}  Bxc1 {[%clk 0:02:05]}
22. Raxc1 {[%clk 0:04:07]}  Rxe5 {[%clk 0:02:13]} 23. c4 {[%clk 0:02:58]}  dxc4 {[%clk 0:02:10]} 24. Rxe4 {[%clk 0:03:08]}  Rxe4 {[%clk 0:02:29]}
25. Bxe4 {[%clk 0:03:34]}  Be6 {[%clk 0:02:22]} 26. Rd1 {[%clk 0:03:09]}  Rd8 {[%clk 0:02:47]} 27. f4 {[%clk 0:02:38]}  g6 {[%clk 0:02:22]}
28. Kf2 {[%clk 0:02:24]}  Kg7 {[%clk 0:02:11]} 29. Ke3 {[%clk 0:01:48]}  d5 {[%clk 0:02:11]} 30. Bf3 {[%clk 0:01:54]}  Kf6 {[%clk 0:02:22]}
31. Kd4 {[%clk 0:02:04]}  Rb8 {[%clk 0:02:34]} 32. Rd2 {[%clk 0:01:43]}  Rb5 {[%clk 0:02:52]} 33. g4 {[%clk 0:01:12]}  Ra5 {[%clk 0:02:17]}
34. a3 {[%clk 0:01:27]}  Rb5 {[%clk 0:02:20]} 35. Bd1 {[%clk 0:01:46]}  g5 {[%clk 0:01:51]} 36. fxg5+ {[%clk 0:01:30]}  Kxg5 {[%clk 0:02:14]}
37. Re2 {[%clk 0:01:16]}  Rb6 {[%clk 0:02:13]} 38. Rf2 {[%clk 0:00:35]}  h6 {[%clk 0:02:08]} 39. Rg2 {[%clk 0:00:39]}  Kh4 {[%clk 0:01:38]}
40. Rf2 {[%clk 0:00:55]}  Kg5 {[%clk 0:01:44]} 41. Ke5 {[%clk 0:25:40]}  Bg8 {[%clk 0:27:14]} 42. Kd4 {[%clk 0:11:52]}  Be6 {[%clk 0:23:05]}
43. a4 {[%clk 0:08:08]}  a5 {[%clk 0:18:04]} 44. h3 {[%clk 0:07:54]}  Rb8 {[%clk 0:13:42]} 45. Re2 {[%clk 0:06:00]}  Bg8 {[%clk 0:12:33]}
46. Re5+ {[%clk 0:05:38]}  Kf4 {[%clk 0:12:21]} 47. Re2 {[%clk 0:05:09]}  Kg3 {[%clk 0:12:21]} 48. Re3+ {[%clk 0:05:21]}  Kh4 {[%clk 0:11:23]}
49. Re5 {[%clk 0:03:47]}  Rxb2 {[%clk 0:11:23]} 50. Bf3 {[%clk 0:03:25]}  Kg3 {[%clk 0:11:04]} 51. Be2 {[%clk 0:02:41]}  Kxh3 {[%clk 0:10:27]}
52. Ke3 {[%clk 0:02:35]}  c3 {[%clk 0:04:24]} 53. g5 {[%clk 0:00:59]}  c2 {[%clk 0:04:01]} 54. Kd2 {[%clk 0:01:22]}  Bh7 {[%clk 0:03:48]}
55. Rxd5 {[%clk 0:01:25]}  Rb1 {[%clk 0:03:09]} 56. Rc5 {[%clk 0:01:30]}  hxg5 {[%clk 0:03:03]} 57. Rc3+ {[%clk 0:01:44]}  Kg2 {[%clk 0:02:42]}
58. Rc4 {[%clk 0:01:22]}  Kf2 {[%clk 0:02:33]} 59. Bg4 {[%clk 0:00:59]}  Rg1 {[%clk 0:02:01]} 60. Bh5 {[%clk 0:01:13]}  Be4 {[%clk 0:01:29]}
61. Rc8 {[%clk 0:01:17]}  g4 {[%clk 0:01:18]} 62. Rf8 {[%clk 0:01:28]}  Kg3 {[%clk 0:01:33]} 0-1

[Event "2026 European Womens Championship"]
[Site "Batumi, GE"]
[Date "2026.06.05"]
[Round "11"]
[White "Nomin-Erdene, Davaademberel"]
[Black "Ushenina, Anna"]
[Result "0-1"]
[Board "4"]
[TimeControl "5400+30"]
[WhiteFideId "4900782"]
[BlackFideId "14110911"]
[WhiteElo "2328"]
[BlackElo "2420"]
[WhiteTitle "IM"]
[BlackTitle "GM"]
[WhiteClock "0:00:42"]
[BlackClock "0:13:03"]
[Variant "Standard"]

1. e4 {[%clk 1:30:53]}  c5 {[%clk 1:30:42]} 2. Nf3 {[%clk 1:31:10]}  Nc6 {[%clk 1:30:51]} 3. d4 {[%clk 1:31:32]}  cxd4 {[%clk 1:31:17]}
4. Nxd4 {[%clk 1:31:58]}  Qb6 {[%clk 1:31:42]} 5. Nb3 {[%clk 1:31:28]}  g6 {[%clk 1:32:00]} 6. c4 {[%clk 1:29:54]}  Bg7 {[%clk 1:32:05]}
7. Nc3 {[%clk 1:29:29]}  Bxc3+ {[%clk 1:31:13]} 8. bxc3 {[%clk 1:29:51]}  d6 {[%clk 1:28:52]} 9. Be3 {[%clk 1:26:56]}  Qc7 {[%clk 1:29:18]}
10. c5 {[%clk 1:22:53]}  dxc5 {[%clk 1:29:39]} 11. Nxc5 {[%clk 1:22:20]}  Nf6 {[%clk 1:29:59]} 12. f3 {[%clk 1:21:23]}  O-O {[%clk 1:28:32]}
13. Be2 {[%clk 1:18:01]}  b6 {[%clk 1:18:22]} 14. Nb3 {[%clk 1:17:29]}  Ne5 {[%clk 1:02:18]} 15. O-O {[%clk 1:13:15]}  Be6 {[%clk 1:01:30]}
16. Bd4 {[%clk 1:02:26]}  Rac8 {[%clk 0:47:40]} 17. Qe1 {[%clk 0:53:30]}  Bc4 {[%clk 0:34:06]} 18. f4 {[%clk 0:45:03]}  Ned7 {[%clk 0:27:01]}
19. Bxc4 {[%clk 0:37:31]}  Qxc4 {[%clk 0:27:28]} 20. e5 {[%clk 0:37:40]}  Ne8 {[%clk 0:21:35]} 21. f5 {[%clk 0:36:28]}  gxf5 {[%clk 0:17:38]}
22. Rxf5 {[%clk 0:31:24]}  Ng7 {[%clk 0:16:06]} 23. Rg5 {[%clk 0:28:24]}  Kh8 {[%clk 0:15:32]} 24. Qh4 {[%clk 0:24:57]}  Qe6 {[%clk 0:13:39]}
25. Re1 {[%clk 0:20:08]}  Rg8 {[%clk 0:13:06]} 26. Rf1 {[%clk 0:16:04]}  f6 {[%clk 0:07:23]} 27. exf6 {[%clk 0:09:42]}  exf6 {[%clk 0:07:51]}
28. Rg6 {[%clk 0:05:20]}  Nf5 {[%clk 0:08:18]} 29. Rxf6 {[%clk 0:05:11]}  Rxg2+ {[%clk 0:07:31]} 30. Kh1 {[%clk 0:05:37]}  Nxf6 {[%clk 0:07:50]}
31. Qxf6+ {[%clk 0:05:56]}  Qxf6 {[%clk 0:08:11]} 32. Bxf6+ {[%clk 0:06:23]}  Kg8 {[%clk 0:08:32]} 33. Rxf5 {[%clk 0:01:56]}  Rxa2 {[%clk 0:08:38]}
34. Rf1 {[%clk 0:01:00]}  Kf7 {[%clk 0:06:12]} 35. Bd4+ {[%clk 0:00:31]}  Ke6 {[%clk 0:05:54]} 36. Nc1 {[%clk 0:01:00]}  Ra1 {[%clk 0:05:03]}
37. Kg2 {[%clk 0:00:40]}  Rg8+ {[%clk 0:05:00]} 38. Kh3 {[%clk 0:01:02]}  b5 {[%clk 0:02:57]} 39. Rf6+ {[%clk 0:00:43]}  Ke7 {[%clk 0:02:47]}
40. Nd3 {[%clk 0:00:38]}  Rf8 {[%clk 0:02:11]} 41. Rh6 {[%clk 0:03:09]}  Rf3+ {[%clk 0:32:05]} 42. Kg4 {[%clk 0:03:36]}  Rxd3 {[%clk 0:32:13]}
43. Rxh7+ {[%clk 0:04:02]}  Ke6 {[%clk 0:32:18]} 44. Rh6+ {[%clk 0:04:07]}  Kf7 {[%clk 0:27:11]} 45. Rh7+ {[%clk 0:03:37]}  Kg6 {[%clk 0:27:01]}
46. Rb7 {[%clk 0:04:03]}  Rd2 {[%clk 0:23:00]} 47. Bxa7 {[%clk 0:03:57]}  Rxh2 {[%clk 0:23:05]} 48. Bc5 {[%clk 0:03:37]}  Rf1 {[%clk 0:16:25]}
49. Bd4 {[%clk 0:00:36]}  Rg2+ {[%clk 0:15:20]} 50. Kh3 {[%clk 0:01:05]}  Rg5 {[%clk 0:15:25]} 51. Rb6+ {[%clk 0:00:32]}  Kh5 {[%clk 0:12:36]}
52. Kh2 {[%clk 0:00:42]}  Rf4 {[%clk 0:13:03]} 0-1

[Event "2026 European Womens Championship"]
[Site "Batumi, GE"]
[Date "2026.06.05"]
[Round "11"]
[White "Roebers, Eline"]
[Black "Olde, Margareth"]
[Result "1/2-1/2"]
[Board "5"]
[TimeControl "5400+30"]
[WhiteFideId "1058401"]
[BlackFideId "4503082"]
[WhiteElo "2389"]
[BlackElo "2194"]
[WhiteTitle "IM"]
[BlackTitle "WIM"]
[WhiteClock "0:02:55"]
[BlackClock "0:02:52"]
[Variant "Standard"]

1. e4 {[%clk 1:30:51]}  e5 {[%clk 1:30:55]} 2. Nf3 {[%clk 1:30:58]}  Nc6 {[%clk 1:31:17]} 3. Bb5 {[%clk 1:31:26]}  a6 {[%clk 1:31:19]}
4. Ba4 {[%clk 1:31:51]}  b5 {[%clk 1:31:15]} 5. Bb3 {[%clk 1:32:18]}  Na5 {[%clk 1:31:26]} 6. Nc3 {[%clk 1:32:44]}  d6 {[%clk 1:24:18]}
7. d4 {[%clk 1:31:27]}  exd4 {[%clk 1:22:13]} 8. Qxd4 {[%clk 1:31:29]}  Bb7 {[%clk 1:20:02]} 9. Qd3 {[%clk 1:31:18]}  Nf6 {[%clk 1:17:02]}
10. O-O {[%clk 1:17:31]}  Be7 {[%clk 1:13:44]} 11. Bf4 {[%clk 1:17:10]}  O-O {[%clk 1:11:53]} 12. Rad1 {[%clk 1:15:09]}  Nxb3 {[%clk 1:04:10]}
13. axb3 {[%clk 1:14:37]}  Nd7 {[%clk 0:59:51]} 14. Rfe1 {[%clk 1:06:58]}  Bf6 {[%clk 0:54:39]} 15. Nd4 {[%clk 1:02:36]}  Re8 {[%clk 0:40:14]}
16. b4 {[%clk 0:55:02]}  Ne5 {[%clk 0:39:01]} 17. Qg3 {[%clk 0:53:37]}  Ng6 {[%clk 0:36:21]} 18. Bc1 {[%clk 0:53:40]}  Qd7 {[%clk 0:24:54]}
19. Bg5 {[%clk 0:50:22]}  Bxg5 {[%clk 0:24:01]} 20. Qxg5 {[%clk 0:50:32]}  f6 {[%clk 0:21:05]} 21. Qg3 {[%clk 0:47:37]}  Qf7 {[%clk 0:20:10]}
22. Nf5 {[%clk 0:42:57]}  Kh8 {[%clk 0:19:28]} 23. Re3 {[%clk 0:36:42]}  Bc8 {[%clk 0:14:37]} 24. Rde1 {[%clk 0:33:48]}  Ne5 {[%clk 0:12:27]}
25. Nd1 {[%clk 0:24:05]}  Nc4 {[%clk 0:12:16]} 26. R3e2 {[%clk 0:22:39]}  Bxf5 {[%clk 0:10:51]} 27. exf5 {[%clk 0:23:03]}  Rxe2 {[%clk 0:10:11]}
28. Rxe2 {[%clk 0:23:30]}  Qd5 {[%clk 0:04:07]} 29. Ne3 {[%clk 0:18:39]}  Qd4 {[%clk 0:03:14]} 30. Qf3 {[%clk 0:12:54]}  Rf8 {[%clk 0:01:10]}
31. c3 {[%clk 0:07:50]}  Qd3 {[%clk 0:01:22]} 32. h3 {[%clk 0:07:43]}  Ne5 {[%clk 0:00:33]} 33. Qh5 {[%clk 0:08:07]}  Kg8 {[%clk 0:00:46]}
34. Re1 {[%clk 0:08:28]}  Qd2 {[%clk 0:00:38]} 35. Qd1 {[%clk 0:06:09]}  Qxd1 {[%clk 0:00:38]} 36. Rxd1 {[%clk 0:06:34]}  Ra8 {[%clk 0:00:37]}
37. f4 {[%clk 0:05:54]}  Nc4 {[%clk 0:00:33]} 38. Nxc4 {[%clk 0:05:52]}  bxc4 {[%clk 0:01:01]} 39. Rd4 {[%clk 0:06:17]}  a5 {[%clk 0:01:09]}
40. Rxc4 {[%clk 0:06:11]}  axb4 {[%clk 0:01:34]} 41. Rxb4 {[%clk 0:06:35]}  Ra5 {[%clk 0:25:59]} 42. g4 {[%clk 0:23:23]}  h5 {[%clk 0:22:58]}
43. Rb8+ {[%clk 0:23:02]}  Kf7 {[%clk 0:20:19]} 44. Rb7 {[%clk 0:23:09]}  Rc5 {[%clk 0:20:43]} 45. Kf2 {[%clk 0:23:28]}  hxg4 {[%clk 0:17:15]}
46. hxg4 {[%clk 0:23:42]}  Rc4 {[%clk 0:16:33]} 47. Ke3 {[%clk 0:23:43]}  Ke8 {[%clk 0:14:52]} 48. Rb8+ {[%clk 0:22:18]}  Ke7 {[%clk 0:15:16]}
49. Rg8 {[%clk 0:22:29]}  Kf7 {[%clk 0:15:38]} 50. Rc8 {[%clk 0:22:48]}  d5 {[%clk 0:09:59]} 51. Kd3 {[%clk 0:19:58]}  c6 {[%clk 0:09:09]}
52. b3 {[%clk 0:18:38]}  Rxf4 {[%clk 0:09:35]} 53. Rxc6 {[%clk 0:19:01]}  Rxg4 {[%clk 0:08:02]} 54. Rd6 {[%clk 0:18:37]}  g6 {[%clk 0:07:17]}
55. fxg6+ {[%clk 0:18:02]}  Rxg6 {[%clk 0:07:39]} 56. Rxd5 {[%clk 0:18:11]}  Ke6 {[%clk 0:08:03]} 57. Rd8 {[%clk 0:18:06]}  Rg3+ {[%clk 0:03:00]}
58. Kc4 {[%clk 0:17:55]}  Rg4+ {[%clk 0:03:26]} 59. Rd4 {[%clk 0:16:41]}  Rg8 {[%clk 0:03:51]} 60. b4 {[%clk 0:17:00]}  Rc8+ {[%clk 0:03:55]}
61. Kb3 {[%clk 0:16:56]}  Ke5 {[%clk 0:03:56]} 62. Rd7 {[%clk 0:07:46]}  f5 {[%clk 0:02:52]} 63. b5 {[%clk 0:07:28]}  Rf8 {[%clk 0:01:03]}
64. Kb4 {[%clk 0:04:54]}  f4 {[%clk 0:01:29]} 65. Kc5 {[%clk 0:03:26]}  Rc8+ {[%clk 0:01:48]} 66. Kb4 {[%clk 0:03:54]}  Rf8 {[%clk 0:02:12]}
67. Rd2 {[%clk 0:02:11]}  f3 {[%clk 0:02:36]} 68. Rf2 {[%clk 0:02:39]}  Kd6 {[%clk 0:02:36]} 69. c4 {[%clk 0:01:52]}  Rf4 {[%clk 0:01:49]}
70. Ka5 {[%clk 0:01:50]}  Kc5 {[%clk 0:00:44]} 71. b6 {[%clk 0:01:56]}  Rf7 {[%clk 0:00:49]} 72. Ka6 {[%clk 0:01:09]}  Rf6 {[%clk 0:01:09]}
73. Ka7 {[%clk 0:01:34]}  Rxb6 {[%clk 0:01:34]} 74. Rxf3 {[%clk 0:02:01]}  Rb4 {[%clk 0:01:57]} 75. Rf4 {[%clk 0:02:27]}  Rxc4 {[%clk 0:02:24]}
76. Rxc4+ {[%clk 0:02:55]}  Kxc4 {[%clk 0:02:52]} 1/2-1/2

[Event "2026 European Womens Championship"]
[Site "Batumi, GE"]
[Date "2026.06.05"]
[Round "11"]
[White "Matnadze Bujiashvili, Ann"]
[Black "Beydullayeva, Govhar"]
[Result "1/2-1/2"]
[Board "6"]
[TimeControl "5400+30"]
[WhiteFideId "13601377"]
[BlackFideId "13413015"]
[WhiteElo "2310"]
[BlackElo "2368"]
[WhiteTitle "IM"]
[BlackTitle "WGM"]
[WhiteClock "0:07:41"]
[BlackClock "0:09:38"]
[Variant "Standard"]

1. d4 {[%clk 1:30:58]}  Nf6 {[%clk 1:30:54]} 2. c4 {[%clk 1:31:16]}  e6 {[%clk 1:31:18]} 3. Nf3 {[%clk 1:30:37]}  d5 {[%clk 1:31:41]}
4. g3 {[%clk 1:30:26]}  Bb4+ {[%clk 1:31:41]} 5. Bd2 {[%clk 1:30:50]}  Be7 {[%clk 1:32:07]} 6. Bg2 {[%clk 1:31:11]}  Nbd7 {[%clk 1:32:24]}
7. Qc2 {[%clk 1:31:03]}  c6 {[%clk 1:32:48]} 8. O-O {[%clk 1:31:05]}  O-O {[%clk 1:33:05]} 9. Rc1 {[%clk 1:31:13]}  a5 {[%clk 1:32:50]}
10. a3 {[%clk 1:30:40]}  Ne4 {[%clk 1:25:42]} 11. Be1 {[%clk 1:24:37]}  Bd6 {[%clk 1:23:44]} 12. Nfd2 {[%clk 1:20:48]}  Nxd2 {[%clk 1:14:35]}
13. Nxd2 {[%clk 1:21:01]}  f5 {[%clk 1:14:41]} 14. Nf3 {[%clk 1:06:24]}  Qe7 {[%clk 1:06:40]} 15. Bd2 {[%clk 0:53:10]}  h6 {[%clk 0:56:54]}
16. Nh4 {[%clk 0:50:59]}  Qf6 {[%clk 0:54:51]} 17. e3 {[%clk 0:46:57]}  g5 {[%clk 0:53:47]} 18. Nf3 {[%clk 0:47:25]}  Qg7 {[%clk 0:45:47]}
19. b4 {[%clk 0:47:38]}  a4 {[%clk 0:45:20]} 20. b5 {[%clk 0:45:57]}  cxb5 {[%clk 0:36:27]} 21. cxd5 {[%clk 0:34:39]}  Nb6 {[%clk 0:31:47]}
22. Qb2 {[%clk 0:33:33]}  Nxd5 {[%clk 0:31:32]} 23. Qxb5 {[%clk 0:33:41]}  Bd7 {[%clk 0:31:51]} 24. Qb2 {[%clk 0:33:12]}  Bc6 {[%clk 0:31:02]}
25. Ne5 {[%clk 0:31:12]}  Bxe5 {[%clk 0:29:07]} 26. dxe5 {[%clk 0:31:40]}  Rad8 {[%clk 0:26:31]} 27. Rc4 {[%clk 0:30:51]}  Rd7 {[%clk 0:24:14]}
28. Re1 {[%clk 0:27:24]}  Rfd8 {[%clk 0:24:13]} 29. Ba5 {[%clk 0:27:23]}  Ra8 {[%clk 0:24:38]} 30. Bd2 {[%clk 0:25:22]}  Rad8 {[%clk 0:24:54]}
31. Ba5 {[%clk 0:22:09]}  Ra8 {[%clk 0:25:19]} 32. Bd2 {[%clk 0:22:00]}  Qf8 {[%clk 0:21:41]} 33. Rec1 {[%clk 0:15:42]}  Qd8 {[%clk 0:19:50]}
34. Be1 {[%clk 0:15:59]}  Ne7 {[%clk 0:18:55]} 35. h4 {[%clk 0:13:26]}  Bxg2 {[%clk 0:18:23]} 36. Kxg2 {[%clk 0:13:54]}  Nc6 {[%clk 0:18:38]}
37. Bb4 {[%clk 0:10:44]}  Rg7 {[%clk 0:09:47]} 38. hxg5 {[%clk 0:03:56]}  hxg5 {[%clk 0:09:47]} 39. Bd6 {[%clk 0:04:14]}  Rh7 {[%clk 0:06:10]}
40. f4 {[%clk 0:01:31]}  gxf4 {[%clk 0:03:35]} 41. exf4 {[%clk 0:23:09]}  Ra6 {[%clk 0:30:45]} 42. Qa2 {[%clk 0:12:39]}  Qe8 {[%clk 0:27:54]}
43. Qe2 {[%clk 0:09:04]}  Rb6 {[%clk 0:22:32]} 44. Bb4 {[%clk 0:09:32]}  Rb5 {[%clk 0:16:47]} 45. Rc5 {[%clk 0:07:32]}  Rxc5 {[%clk 0:16:49]}
46. Bxc5 {[%clk 0:08:01]}  Qd8 {[%clk 0:11:52]} 47. Rd1 {[%clk 0:07:44]}  Rd7 {[%clk 0:09:22]} 48. Bd6 {[%clk 0:07:37]}  Rh7 {[%clk 0:08:54]}
49. Bc5 {[%clk 0:07:20]}  Rd7 {[%clk 0:09:19]} 50. Bd6 {[%clk 0:07:46]}  Rh7 {[%clk 0:09:38]} 51. Bc5 {[%clk 0:07:41]} 1/2-1/2

[Event "2026 European Womens Championship"]
[Site "Batumi, GE"]
[Date "2026.06.05"]
[Round "11"]
[White "Zimina, Olga"]
[Black "Toncheva, Nadya"]
[Result "1/2-1/2"]
[Board "7"]
[TimeControl "5400+30"]
[WhiteFideId "4132190"]
[BlackFideId "2924056"]
[WhiteElo "2290"]
[BlackElo "2320"]
[WhiteTitle "IM"]
[BlackTitle "WGM"]
[WhiteClock "0:00:41"]
[BlackClock "0:04:34"]
[Variant "Standard"]

1. d4 {[%clk 1:30:51]}  d5 {[%clk 1:30:55]} 2. Nf3 {[%clk 1:31:08]}  Nf6 {[%clk 1:31:19]} 3. g3 {[%clk 1:31:28]}  Bf5 {[%clk 1:31:43]}
4. Bg2 {[%clk 1:31:48]}  e6 {[%clk 1:31:54]} 5. c4 {[%clk 1:32:04]}  c6 {[%clk 1:32:08]} 6. Nc3 {[%clk 1:32:22]}  h6 {[%clk 1:32:05]}
7. Qb3 {[%clk 1:32:39]}  Qb6 {[%clk 1:32:29]} 8. c5 {[%clk 1:33:02]}  Qxb3 {[%clk 1:32:55]} 9. axb3 {[%clk 1:33:27]}  Be7 {[%clk 1:31:46]}
10. b4 {[%clk 1:33:30]}  O-O {[%clk 1:31:48]} 11. h3 {[%clk 1:33:47]}  a6 {[%clk 1:28:08]} 12. g4 {[%clk 1:33:17]}  Bh7 {[%clk 1:23:07]}
13. Bf4 {[%clk 1:33:01]}  Nbd7 {[%clk 1:22:57]} 14. Nd2 {[%clk 1:33:04]}  Rac8 {[%clk 1:07:38]} 15. Nb3 {[%clk 1:29:14]}  Bc2 {[%clk 1:02:46]}
16. Na5 {[%clk 0:59:01]}  b6 {[%clk 1:03:10]} 17. Nb7 {[%clk 0:58:01]}  a5 {[%clk 0:58:32]} 18. Nd6 {[%clk 0:29:25]}  Rcd8 {[%clk 0:48:22]}
19. Nb7 {[%clk 0:25:28]}  Ra8 {[%clk 0:45:42]} 20. b5 {[%clk 0:19:47]}  Rfc8 {[%clk 0:34:09]} 21. Rc1 {[%clk 0:17:45]}  Bg6 {[%clk 0:28:12]}
22. cxb6 {[%clk 0:15:05]}  Nxb6 {[%clk 0:28:21]} 23. O-O {[%clk 0:15:11]}  Bb4 {[%clk 0:23:46]} 24. bxc6 {[%clk 0:11:54]}  Rxc6 {[%clk 0:24:12]}
25. Nb5 {[%clk 0:04:35]}  Rxc1 {[%clk 0:21:34]} 26. Rxc1 {[%clk 0:04:56]}  Nc4 {[%clk 0:21:34]} 27. b3 {[%clk 0:04:34]}  Nd2 {[%clk 0:21:40]}
28. Nc5 {[%clk 0:03:26]}  Nfe4 {[%clk 0:15:22]} 29. Nxe4 {[%clk 0:03:13]}  Nxe4 {[%clk 0:15:26]} 30. Bxe4 {[%clk 0:01:00]}  Bxe4 {[%clk 0:15:37]}
31. Bd6 {[%clk 0:00:51]}  Ra6 {[%clk 0:12:16]} 32. Rc8+ {[%clk 0:00:58]}  Kh7 {[%clk 0:12:43]} 33. Bc5 {[%clk 0:01:06]}  Bb1 {[%clk 0:09:58]}
34. Na3 {[%clk 0:00:50]}  Ba2 {[%clk 0:08:54]} 35. Bxb4 {[%clk 0:01:15]}  axb4 {[%clk 0:09:20]} 36. Nc2 {[%clk 0:01:41]}  Rb6 {[%clk 0:07:58]}
37. Na1 {[%clk 0:02:10]}  Kg6 {[%clk 0:05:50]} 38. Rc2 {[%clk 0:02:08]}  Bb1 {[%clk 0:04:02]} 39. Rc1 {[%clk 0:02:33]}  Ba2 {[%clk 0:03:49]}
40. Rc2 {[%clk 0:02:33]}  Bb1 {[%clk 0:04:09]} 41. Rc1 {[%clk 0:01:29]}  Ba2 {[%clk 0:04:34]} 42. Rc2 {[%clk 0:00:41]} 1/2-1/2